[Event "Titled Tuesday Blitz January 03 Early 2023"]
[White "Ardelean, George-Catalin"]
[Black "Sharifov, Mekhriddin"]
[WhiteFideId "1207091"]
[BlackFideId "14701545"]
[WhiteElo "2470"]
[BlackElo "2209"]
[Result "1-0"]
[Round "09"]
[TimeControl "180+2"]
[Date "2023.01.03"]
[WhiteClock "0:00:20"]
[BlackClock "0:00:18"]

1. d4 {[%clk 0:03:00]}  Nf6 {[%clk 0:03:00]} 2. Bf4 {[%clk 0:03:00]}  g6 {[%clk 0:03:00]} 3. Nc3 {[%clk 0:02:59]}  d5 {[%clk 0:03:00]} 4. e3 {[%clk 0:03:00]}  c5 {[%clk 0:02:57]} 5. Nb5 {[%clk 0:02:55]}  Na6 {[%clk 0:02:57]} 6. c3 {[%clk 0:02:53]}  Bg7 {[%clk 0:02:56]} 7. h3 {[%clk 0:02:44]}  O-O {[%clk 0:02:54]} 8. Nf3 {[%clk 0:02:45]}  Bf5 {[%clk 0:02:47]} 9. Be2 {[%clk 0:02:42]}  Qb6 {[%clk 0:02:41]} 10. a4 {[%clk 0:02:41]}  Rfe8 {[%clk 0:02:24]} 11. O-O {[%clk 0:02:40]}  h5 {[%clk 0:02:18]} 12. a5 {[%clk 0:02:25]}  Qd8 {[%clk 0:02:18]} 13. Ne5 {[%clk 0:02:14]}  Bd7 {[%clk 0:02:02]} 14. c4 {[%clk 0:02:00]}  cxd4 {[%clk 0:01:54]} 15. exd4 {[%clk 0:01:55]}  dxc4 {[%clk 0:01:17]} 16. Bxc4 {[%clk 0:01:53]}  e6 {[%clk 0:01:18]} 17. Nd6 {[%clk 0:01:51]}  Nb4 {[%clk 0:01:06]} 18. Ndxf7 {[%clk 0:01:36]}  Qe7 {[%clk 0:00:53]} 19. Ng5 {[%clk 0:01:30]}  Nfd5 {[%clk 0:00:49]} 20. Bd2 {[%clk 0:01:28]}  Qf6 {[%clk 0:00:45]} 21. Ne4 {[%clk 0:01:24]}  Qd8 {[%clk 0:00:41]} 22. Nxg6 {[%clk 0:01:12]}  Rc8 {[%clk 0:00:40]} 23. b3 {[%clk 0:01:01]}  Bc6 {[%clk 0:00:36]} 24. Qxh5 {[%clk 0:00:59]}  Nc2 {[%clk 0:00:33]} 25. Ne5 {[%clk 0:00:50]}  Nxa1 {[%clk 0:00:25]} 26. Qf7+ {[%clk 0:00:48]}  Kh8 {[%clk 0:00:24]} 27. Ng6+ {[%clk 0:00:44]}  Kh7 {[%clk 0:00:24]} 28. Ng5+ {[%clk 0:00:42]}  Qxg5 {[%clk 0:00:25]} 29. Bxg5 {[%clk 0:00:42]}  Nc2 {[%clk 0:00:20]} 30. Bd3 {[%clk 0:00:40]}  Ncb4 {[%clk 0:00:19]} 31. Bb1 {[%clk 0:00:23]}  Nc3 {[%clk 0:00:19]} 32. Ne7+ {[%clk 0:00:20]}  Kh8 {[%clk 0:00:18]} 33. Qh5+ {[%clk 0:00:20]} 1-0


[Site "https://www.chess.com"]

[Event "Titled Tuesday Blitz January 03 Early 2023"]
[White "Iskusnyh, Sergei"]
[Black "Starozhilov, Leonid"]
[WhiteFideId "4120027"]
[BlackFideId "14106752"]
[WhiteElo "2440"]
[BlackElo "2313"]
[Result "0-1"]
[Round "09"]
[TimeControl "180+2"]
[Date "2023.01.03"]
[WhiteClock "0:00:10"]
[BlackClock "0:00:37"]

1. e4 {[%clk 0:03:00]}  g6 {[%clk 0:02:57]} 2. d4 {[%clk 0:02:58]}  Bg7 {[%clk 0:02:58]} 3. Nf3 {[%clk 0:02:57]}  d6 {[%clk 0:02:57]} 4. Nc3 {[%clk 0:02:56]}  Nf6 {[%clk 0:02:57]} 5. h3 {[%clk 0:02:54]}  O-O {[%clk 0:02:56]} 6. Be3 {[%clk 0:02:53]}  c5 {[%clk 0:02:54]} 7. dxc5 {[%clk 0:02:51]}  Qa5 {[%clk 0:02:54]} 8. Nd2 {[%clk 0:02:50]}  dxc5 {[%clk 0:02:55]} 9. e5 {[%clk 0:02:47]}  Nfd7 {[%clk 0:02:48]} 10. f4 {[%clk 0:02:46]}  Nc6 {[%clk 0:02:34]} 11. Nc4 {[%clk 0:02:29]}  Qc7 {[%clk 0:02:26]} 12. Be2 {[%clk 0:02:17]}  Rd8 {[%clk 0:02:12]} 13. Nd5 {[%clk 0:02:04]}  Qb8 {[%clk 0:02:09]} 14. Nd2 {[%clk 0:01:00]}  Ndxe5 {[%clk 0:02:02]} 15. Nxe7+ {[%clk 0:00:56]}  Nxe7 {[%clk 0:02:02]} 16. fxe5 {[%clk 0:00:51]}  Qxe5 {[%clk 0:01:53]} 17. Bf2 {[%clk 0:00:47]}  Nf5 {[%clk 0:01:53]} 18. O-O {[%clk 0:00:43]}  Ne3 {[%clk 0:01:53]} 19. Nf3 {[%clk 0:00:34]}  Nxd1 {[%clk 0:01:37]} 20. Nxe5 {[%clk 0:00:32]}  Nxf2 {[%clk 0:01:37]} 21. Nxf7 {[%clk 0:00:28]}  Kxf7 {[%clk 0:01:25]} 22. Bc4+ {[%clk 0:00:28]}  Kf6 {[%clk 0:01:09]} 23. Rxf2+ {[%clk 0:00:26]}  Kg5 {[%clk 0:01:09]} 24. Rf7 {[%clk 0:00:22]}  Bxb2 {[%clk 0:01:03]} 25. Rb1 {[%clk 0:00:19]}  Bd4+ {[%clk 0:01:03]} 26. Kh1 {[%clk 0:00:17]}  h5 {[%clk 0:00:42]} 27. Rh7 {[%clk 0:00:14]}  Bf5 {[%clk 0:00:40]} 28. Rbxb7 {[%clk 0:00:12]}  Rab8 {[%clk 0:00:37]} 29. Rxa7 {[%clk 0:00:10]}  Rb1+ {[%clk 0:00:36]} 30. Kh2 {[%clk 0:00:10]}  Be5+ {[%clk 0:00:37]} 31. g3 {[%clk 0:00:10]}  Rd2+ {[%clk 0:00:37]} 0-1


[Site "https://www.chess.com"]

[Event "Titled Tuesday Blitz January 03 Early 2023"]
[White "Matinian, Nikita"]
[Black "Al-Tarboush, Ward"]
[WhiteFideId "24129100"]
[BlackFideId "7601450"]
[WhiteElo "2407"]
[BlackElo "2256"]
[Result "1-0"]
[Round "09"]
[TimeControl "180+2"]
[Date "2023.01.03"]
[WhiteClock "0:00:34"]
[BlackClock "0:00:46"]

1. e4 {[%clk 0:03:00]}  c5 {[%clk 0:02:59]} 2. Nf3 {[%clk 0:02:59]}  Nc6 {[%clk 0:02:59]} 3. Bb5 {[%clk 0:02:58]}  e6 {[%clk 0:02:58]} 4. O-O {[%clk 0:02:57]}  Nge7 {[%clk 0:02:58]} 5. c3 {[%clk 0:02:54]}  a6 {[%clk 0:02:30]} 6. Ba4 {[%clk 0:02:54]}  b5 {[%clk 0:02:29]} 7. Bc2 {[%clk 0:02:54]}  Bb7 {[%clk 0:02:29]} 8. a4 {[%clk 0:02:54]}  c4 {[%clk 0:02:28]} 9. d4 {[%clk 0:02:51]}  cxd3 {[%clk 0:02:25]} 10. Qxd3 {[%clk 0:02:52]}  bxa4 {[%clk 0:02:24]} 11. Rxa4 {[%clk 0:02:50]}  Ng6 {[%clk 0:02:23]} 12. Re1 {[%clk 0:02:48]}  Bc5 {[%clk 0:02:23]} 13. e5 {[%clk 0:02:46]}  Qb6 {[%clk 0:02:19]} 14. Re2 {[%clk 0:02:42]}  O-O {[%clk 0:02:16]} 15. Ng5 {[%clk 0:02:32]}  h6 {[%clk 0:02:14]} 16. Nxf7 {[%clk 0:02:28]}  Rxf7 {[%clk 0:02:13]} 17. Qxg6 {[%clk 0:02:27]}  Bxf2+ {[%clk 0:02:13]} 18. Kh1 {[%clk 0:02:28]}  Be3 {[%clk 0:02:13]} 19. Re1 {[%clk 0:02:17]}  Bxc1 {[%clk 0:02:05]} 20. Rxc1 {[%clk 0:02:07]}  Qf2 {[%clk 0:02:03]} 21. h3 {[%clk 0:01:28]}  Nxe5 {[%clk 0:02:01]} 22. Qh7+ {[%clk 0:01:28]}  Kf8 {[%clk 0:02:02]} 23. Be4 {[%clk 0:01:29]}  Bxe4 {[%clk 0:01:52]} 24. Rxe4 {[%clk 0:01:27]}  Nd3 {[%clk 0:01:37]} 25. Qh8+ {[%clk 0:01:16]}  Ke7 {[%clk 0:01:36]} 26. Qxa8 {[%clk 0:01:16]}  Nxc1 {[%clk 0:01:34]} 27. Qxa6 {[%clk 0:01:08]}  Qf1+ {[%clk 0:01:19]} 28. Qxf1 {[%clk 0:01:07]}  Rxf1+ {[%clk 0:01:20]} 29. Kh2 {[%clk 0:01:08]}  Nd3 {[%clk 0:01:20]} 30. Nd2 {[%clk 0:01:04]}  Rd1 {[%clk 0:01:20]} 31. Nc4 {[%clk 0:00:39]}  d5 {[%clk 0:01:17]} 32. Ne3 {[%clk 0:00:40]}  Re1 {[%clk 0:01:15]} 33. Nxd5+ {[%clk 0:00:40]}  Kd6 {[%clk 0:01:08]} 34. Rxe1 {[%clk 0:00:40]}  Nxe1 {[%clk 0:01:08]} 35. Nb4 {[%clk 0:00:37]}  Ke5 {[%clk 0:00:52]} 36. Kg3 {[%clk 0:00:37]}  Ke4 {[%clk 0:00:53]} 37. Kf2 {[%clk 0:00:37]}  Nd3+ {[%clk 0:00:52]} 38. Nxd3 {[%clk 0:00:37]}  Kxd3 {[%clk 0:00:53]} 39. Ke1 {[%clk 0:00:35]}  h5 {[%clk 0:00:50]} 40. b4 {[%clk 0:00:34]}  Kc4 {[%clk 0:00:46]} 41. Kd2 {[%clk 0:00:34]} 1-0


[Site "https://www.chess.com"]

[Event "Titled Tuesday Blitz January 03 Early 2023"]
[White "Skvortsov, Andrei"]
[Black "Valle Maytin, Luis Enrique"]
[WhiteFideId "24108600"]
[BlackFideId "3503666"]
[WhiteElo "2313"]
[BlackElo "2241"]
[Result "1-0"]
[Round "09"]
[TimeControl "180+2"]
[Date "2023.01.03"]
[WhiteClock "0:00:59"]
[BlackClock "0:00:28"]

1. d4 {[%clk 0:03:00]}  Nf6 {[%clk 0:02:59]} 2. Nf3 {[%clk 0:02:58]}  d5 {[%clk 0:02:57]} 3. c4 {[%clk 0:02:57]}  c6 {[%clk 0:02:54]} 4. Nc3 {[%clk 0:02:52]}  g6 {[%clk 0:02:51]} 5. cxd5 {[%clk 0:02:44]}  cxd5 {[%clk 0:02:50]} 6. Bg5 {[%clk 0:02:41]}  Bg7 {[%clk 0:02:49]} 7. Bxf6 {[%clk 0:02:40]}  exf6 {[%clk 0:02:49]} 8. Qb3 {[%clk 0:02:34]}  O-O {[%clk 0:02:26]} 9. Qxd5 {[%clk 0:02:33]}  Qe7 {[%clk 0:02:16]} 10. e3 {[%clk 0:02:28]}  Nc6 {[%clk 0:02:13]} 11. Qc5 {[%clk 0:02:17]}  Qxc5 {[%clk 0:02:00]} 12. dxc5 {[%clk 0:02:18]}  f5 {[%clk 0:01:59]} 13. Rc1 {[%clk 0:02:02]}  Be6 {[%clk 0:01:59]} 14. Bb5 {[%clk 0:02:00]}  Rac8 {[%clk 0:01:53]} 15. O-O {[%clk 0:01:48]}  Bxc3 {[%clk 0:01:28]} 16. Rxc3 {[%clk 0:01:40]}  Bxa2 {[%clk 0:01:27]} 17. Ra1 {[%clk 0:01:34]}  Bd5 {[%clk 0:01:10]} 18. Bxc6 {[%clk 0:01:31]}  Rxc6 {[%clk 0:01:09]} 19. Nd4 {[%clk 0:01:30]}  Ra6 {[%clk 0:00:46]} 20. Rxa6 {[%clk 0:01:25]}  bxa6 {[%clk 0:00:47]} 21. f3 {[%clk 0:01:22]}  Rc8 {[%clk 0:00:47]} 22. b4 {[%clk 0:01:17]}  Kf8 {[%clk 0:00:37]} 23. Ra3 {[%clk 0:01:15]}  Bc4 {[%clk 0:00:35]} 24. Rc3 {[%clk 0:01:08]}  Bd5 {[%clk 0:00:35]} 25. Ra3 {[%clk 0:01:04]}  Bc4 {[%clk 0:00:34]} 26. h4 {[%clk 0:01:03]}  Ke7 {[%clk 0:00:29]} 27. Kf2 {[%clk 0:01:00]}  Rb8 {[%clk 0:00:28]} 28. Nc6+ {[%clk 0:00:59]} 1-0


[Site "https://www.chess.com"]

[Event "Titled Tuesday Blitz January 03 Early 2023"]
[White "Yeritsyan, Hayk"]
[Black "Rostomyan, Mikayel"]
[WhiteFideId "13307320"]
[BlackFideId "13313754"]
[WhiteElo "2241"]
[BlackElo "2222"]
[Result "1-0"]
[Round "09"]
[TimeControl "180+2"]
[Date "2023.01.03"]
[WhiteClock "0:00:20"]
[BlackClock "0:00:18"]

1. c4 {[%clk 0:03:00]}  e5 {[%clk 0:02:58]} 2. Nc3 {[%clk 0:02:58]}  Bb4 {[%clk 0:02:58]} 3. Nd5 {[%clk 0:02:54]}  Be7 {[%clk 0:02:55]} 4. d4 {[%clk 0:02:52]}  exd4 {[%clk 0:02:54]} 5. Qxd4 {[%clk 0:02:50]}  Nf6 {[%clk 0:02:54]} 6. Nf3 {[%clk 0:02:46]}  Nc6 {[%clk 0:02:52]} 7. Qd3 {[%clk 0:02:39]}  Nb4 {[%clk 0:02:40]} 8. Qb3 {[%clk 0:02:18]}  Nbxd5 {[%clk 0:02:37]} 9. cxd5 {[%clk 0:02:19]}  O-O {[%clk 0:02:36]} 10. g3 {[%clk 0:02:09]}  c6 {[%clk 0:02:34]} 11. dxc6 {[%clk 0:01:57]}  dxc6 {[%clk 0:02:35]} 12. Bg2 {[%clk 0:01:54]}  Be6 {[%clk 0:02:35]} 13. Qc2 {[%clk 0:01:53]}  Bb4+ {[%clk 0:02:25]} 14. Bd2 {[%clk 0:01:52]}  Bxd2+ {[%clk 0:02:24]} 15. Qxd2 {[%clk 0:01:51]}  Qb6 {[%clk 0:02:05]} 16. O-O {[%clk 0:01:49]}  Rfd8 {[%clk 0:02:05]} 17. Qc2 {[%clk 0:01:48]}  h6 {[%clk 0:02:02]} 18. e3 {[%clk 0:01:36]}  Bd5 {[%clk 0:02:00]} 19. Rfd1 {[%clk 0:01:33]}  Be4 {[%clk 0:01:52]} 20. Qc3 {[%clk 0:01:29]}  Nd5 {[%clk 0:01:48]} 21. Qd4 {[%clk 0:01:26]}  Bxf3 {[%clk 0:01:33]} 22. Bxf3 {[%clk 0:01:22]}  Nb4 {[%clk 0:01:33]} 23. Qxb6 {[%clk 0:01:20]}  axb6 {[%clk 0:01:34]} 24. a3 {[%clk 0:01:18]}  Nd3 {[%clk 0:01:31]} 25. Rab1 {[%clk 0:01:06]}  Nc5 {[%clk 0:01:22]} 26. Kf1 {[%clk 0:01:00]}  Kf8 {[%clk 0:01:17]} 27. Ke2 {[%clk 0:00:58]}  Ke7 {[%clk 0:01:17]} 28. h4 {[%clk 0:00:57]}  b5 {[%clk 0:01:06]} 29. g4 {[%clk 0:00:54]}  Na4 {[%clk 0:01:04]} 30. g5 {[%clk 0:00:47]}  hxg5 {[%clk 0:01:04]} 31. hxg5 {[%clk 0:00:47]}  Rxd1 {[%clk 0:01:05]} 32. Kxd1 {[%clk 0:00:46]}  Rh8 {[%clk 0:01:03]} 33. Ke2 {[%clk 0:00:42]}  Ke6 {[%clk 0:00:45]} 34. Bg4+ {[%clk 0:00:41]}  Ke5 {[%clk 0:00:37]} 35. f4+ {[%clk 0:00:41]}  Kd6 {[%clk 0:00:37]} 36. Rd1+ {[%clk 0:00:40]}  Kc5 {[%clk 0:00:37]} 37. Rc1+ {[%clk 0:00:33]}  Kb6 {[%clk 0:00:37]} 38. b3 {[%clk 0:00:33]}  Rh2+ {[%clk 0:00:35]} 39. Kf3 {[%clk 0:00:32]}  Nc5 {[%clk 0:00:35]} 40. b4 {[%clk 0:00:29]}  Nd3 {[%clk 0:00:28]} 41. Rd1 {[%clk 0:00:25]}  Rf2+ {[%clk 0:00:24]} 42. Kg3 {[%clk 0:00:24]}  Nb2 {[%clk 0:00:16]} 43. Kxf2 {[%clk 0:00:22]}  Nxd1+ {[%clk 0:00:16]} 44. Bxd1 {[%clk 0:00:23]}  c5 {[%clk 0:00:17]} 45. Bb3 {[%clk 0:00:22]}  c4 {[%clk 0:00:17]} 46. Bc2 {[%clk 0:00:22]}  Kc6 {[%clk 0:00:18]} 47. e4 {[%clk 0:00:21]}  Kd6 {[%clk 0:00:18]} 48. Ke3 {[%clk 0:00:20]} 1-0


[Site "https://www.chess.com"]

[Event "Titled Tuesday Blitz January 03 Early 2023"]
[White "Goltsev, Dmitry"]
[Black "Torres Dominguez, David"]
[WhiteFideId "24176710"]
[BlackFideId "2220857"]
[WhiteElo "2269"]
[BlackElo "1994"]
[Result "1-0"]
[Round "09"]
[TimeControl "180+2"]
[Date "2023.01.03"]
[WhiteClock "0:00:07"]
[BlackClock "0:00:03"]

1. e4 {[%clk 0:03:00]}  Nc6 {[%clk 0:02:59]} 2. Nf3 {[%clk 0:03:00]}  e5 {[%clk 0:02:59]} 3. Nc3 {[%clk 0:03:00]}  Nf6 {[%clk 0:02:58]} 4. d4 {[%clk 0:03:00]}  exd4 {[%clk 0:02:58]} 5. Nxd4 {[%clk 0:03:01]}  Bb4 {[%clk 0:02:59]} 6. Nxc6 {[%clk 0:02:56]}  bxc6 {[%clk 0:02:59]} 7. Bd3 {[%clk 0:02:55]}  d5 {[%clk 0:03:00]} 8. exd5 {[%clk 0:02:54]}  O-O {[%clk 0:03:00]} 9. O-O {[%clk 0:02:52]}  cxd5 {[%clk 0:02:59]} 10. Bg5 {[%clk 0:02:51]}  c6 {[%clk 0:02:59]} 11. Qf3 {[%clk 0:02:47]}  h6 {[%clk 0:02:59]} 12. Bh4 {[%clk 0:02:43]}  g5 {[%clk 0:02:22]} 13. Bg3 {[%clk 0:02:40]}  Bg4 {[%clk 0:02:12]} 14. Qe3 {[%clk 0:02:38]}  d4 {[%clk 0:02:07]} 15. Qe5 {[%clk 0:02:37]}  dxc3 {[%clk 0:02:03]} 16. bxc3 {[%clk 0:02:35]}  Re8 {[%clk 0:01:54]} 17. cxb4 {[%clk 0:02:11]}  Rxe5 {[%clk 0:01:49]} 18. Bxe5 {[%clk 0:02:11]}  Nd5 {[%clk 0:01:50]} 19. a3 {[%clk 0:01:58]}  f6 {[%clk 0:01:49]} 20. Bb2 {[%clk 0:01:57]}  Nf4 {[%clk 0:01:44]} 21. Be4 {[%clk 0:01:52]}  Qe7 {[%clk 0:01:36]} 22. Rfe1 {[%clk 0:01:48]}  Ne2+ {[%clk 0:01:32]} 23. Rxe2 {[%clk 0:01:35]}  Bxe2 {[%clk 0:01:31]} 24. Bxc6 {[%clk 0:01:36]}  Rc8 {[%clk 0:01:21]} 25. Ba4 {[%clk 0:01:30]}  Qd6 {[%clk 0:01:16]} 26. h3 {[%clk 0:01:19]}  Kg7 {[%clk 0:01:16]} 27. Bb3 {[%clk 0:01:11]}  Bc4 {[%clk 0:01:14]} 28. Ba4 {[%clk 0:01:08]}  Qd2 {[%clk 0:01:11]} 29. Rb1 {[%clk 0:01:04]}  Re8 {[%clk 0:01:09]} 30. Bxe8 {[%clk 0:00:59]}  Qxc2 {[%clk 0:01:07]} 31. Rc1 {[%clk 0:01:00]}  Qxb2 {[%clk 0:00:53]} 32. Rxc4 {[%clk 0:00:59]}  Qa1+ {[%clk 0:00:53]} 33. Kh2 {[%clk 0:00:58]}  Qe5+ {[%clk 0:00:53]} 34. Kg1 {[%clk 0:00:54]}  Qe1+ {[%clk 0:00:51]} 35. Kh2 {[%clk 0:00:49]}  Qe5+ {[%clk 0:00:52]} 36. Kg1 {[%clk 0:00:48]}  Qxe8 {[%clk 0:00:52]} 37. g3 {[%clk 0:00:31]}  Qe1+ {[%clk 0:00:45]} 38. Kg2 {[%clk 0:00:29]}  Qe5 {[%clk 0:00:45]} 39. Rc5 {[%clk 0:00:25]}  Qd6 {[%clk 0:00:44]} 40. h4 {[%clk 0:00:20]}  Kg6 {[%clk 0:00:40]} 41. hxg5 {[%clk 0:00:20]}  hxg5 {[%clk 0:00:40]} 42. Ra5 {[%clk 0:00:17]}  Qc6+ {[%clk 0:00:38]} 43. Kh2 {[%clk 0:00:17]}  g4 {[%clk 0:00:32]} 44. Kg1 {[%clk 0:00:16]}  f5 {[%clk 0:00:28]} 45. Rxa7 {[%clk 0:00:14]}  Qc1+ {[%clk 0:00:24]} 46. Kg2 {[%clk 0:00:13]}  Qc6+ {[%clk 0:00:24]} 47. Kg1 {[%clk 0:00:13]}  Kf6 {[%clk 0:00:20]} 48. Ra5 {[%clk 0:00:13]}  Qc1+ {[%clk 0:00:19]} 49. Kg2 {[%clk 0:00:14]}  Qc6+ {[%clk 0:00:18]} 50. Kg1 {[%clk 0:00:14]}  Qf3 {[%clk 0:00:14]} 51. a4 {[%clk 0:00:11]}  Qb3 {[%clk 0:00:10]} 52. Ra6+ {[%clk 0:00:08]}  Ke5 {[%clk 0:00:09]} 53. b5 {[%clk 0:00:09]}  Ke4 {[%clk 0:00:05]} 54. Kg2 {[%clk 0:00:07]}  Qf3+ {[%clk 0:00:04]} 55. Kf1 {[%clk 0:00:07]}  Qd3+ {[%clk 0:00:01]} 56. Kg2 {[%clk 0:00:05]}  Qf3+ {[%clk 0:00:02]} 57. Kf1 {[%clk 0:00:06]}  Qd1+ {[%clk 0:00:02]} 58. Kg2 {[%clk 0:00:06]}  Qd3 {[%clk 0:00:02]} 59. Re6+ {[%clk 0:00:05]}  Kd4 {[%clk 0:00:03]} 60. Rd6+ {[%clk 0:00:05]}  Kc4 {[%clk 0:00:03]} 61. Rxd3 {[%clk 0:00:06]}  Kxd3 {[%clk 0:00:03]} 62. b6 {[%clk 0:00:07]} 1-0


[Site "https://www.chess.com"]

[Event "Titled Tuesday Blitz January 03 Early 2023"]
[White "Dominguez Perez, Leinier"]
[Black "Batsiashvili, Nino"]
[WhiteFideId "3503240"]
[BlackFideId "13602993"]
[WhiteElo "2739"]
[BlackElo "2467"]
[Result "1-0"]
[Round "09"]
[TimeControl "180+2"]
[Date "2023.01.03"]
[WhiteClock "0:00:50"]
[BlackClock "0:00:10"]

1. e4 {[%clk 0:03:00]}  e5 {[%clk 0:02:54]} 2. Nf3 {[%clk 0:03:00]}  Nc6 {[%clk 0:02:54]} 3. Bb5 {[%clk 0:03:00]}  Nge7 {[%clk 0:02:54]} 4. O-O {[%clk 0:02:59]}  Ng6 {[%clk 0:02:54]} 5. c3 {[%clk 0:02:57]}  d5 {[%clk 0:02:37]} 6. Qa4 {[%clk 0:02:35]}  dxe4 {[%clk 0:02:24]} 7. Qxe4 {[%clk 0:02:35]}  f5 {[%clk 0:01:58]} 8. Qc4 {[%clk 0:02:24]}  Bd7 {[%clk 0:01:39]} 9. d4 {[%clk 0:02:23]}  e4 {[%clk 0:01:38]} 10. Ng5 {[%clk 0:02:17]}  Qf6 {[%clk 0:01:35]} 11. f3 {[%clk 0:02:08]}  h6 {[%clk 0:01:33]} 12. Nh3 {[%clk 0:01:55]}  exf3 {[%clk 0:01:29]} 13. Rxf3 {[%clk 0:01:54]}  O-O-O {[%clk 0:01:27]} 14. Nf4 {[%clk 0:01:47]}  Nh4 {[%clk 0:01:07]} 15. Rf2 {[%clk 0:01:41]}  Bd6 {[%clk 0:01:03]} 16. Nd5 {[%clk 0:01:35]}  Qg6 {[%clk 0:00:59]} 17. Bf4 {[%clk 0:01:34]}  a6 {[%clk 0:00:39]} 18. Bxa6 {[%clk 0:01:23]}  Na5 {[%clk 0:00:32]} 19. Ne7+ {[%clk 0:01:14]}  Kb8 {[%clk 0:00:27]} 20. Nxg6 {[%clk 0:01:13]}  Nxg6 {[%clk 0:00:24]} 21. Qd5 {[%clk 0:01:06]}  Bc6 {[%clk 0:00:20]} 22. Qxa5 {[%clk 0:01:04]}  Nxf4 {[%clk 0:00:20]} 23. Bb5 {[%clk 0:01:00]}  Rhe8 {[%clk 0:00:13]} 24. Bxc6 {[%clk 0:00:52]}  Re1+ {[%clk 0:00:12]} 25. Rf1 {[%clk 0:00:52]}  Rxf1+ {[%clk 0:00:09]} 26. Kxf1 {[%clk 0:00:51]}  bxc6 {[%clk 0:00:10]} 27. Nd2 {[%clk 0:00:50]} 1-0


[Site "https://www.chess.com"]

[Event "Titled Tuesday Blitz January 03 Early 2023"]
[White "Bryakin, Mikhail"]
[Black "Gascon Del Nogal, Jose Rafael"]
[WhiteFideId "4165314"]
[BlackFideId "3902463"]
[WhiteElo "2455"]
[BlackElo "2459"]
[Result "0-1"]
[Round "09"]
[TimeControl "180+2"]
[Date "2023.01.03"]
[WhiteClock "0:00:19"]
[BlackClock "0:00:07"]

1. c4 {[%clk 0:03:00]}  e5 {[%clk 0:02:58]} 2. g3 {[%clk 0:02:59]}  Nc6 {[%clk 0:02:58]} 3. Bg2 {[%clk 0:02:59]}  Bc5 {[%clk 0:02:58]} 4. e3 {[%clk 0:02:59]}  a6 {[%clk 0:02:58]} 5. Ne2 {[%clk 0:02:59]}  d6 {[%clk 0:02:58]} 6. Nbc3 {[%clk 0:02:58]}  Ba7 {[%clk 0:02:58]} 7. b3 {[%clk 0:02:57]}  Nf6 {[%clk 0:02:52]} 8. Bb2 {[%clk 0:02:58]}  Bf5 {[%clk 0:02:52]} 9. O-O {[%clk 0:02:50]}  O-O {[%clk 0:02:47]} 10. d3 {[%clk 0:02:45]}  Qd7 {[%clk 0:02:45]} 11. Re1 {[%clk 0:02:44]}  Bh3 {[%clk 0:02:44]} 12. Bh1 {[%clk 0:02:44]}  h6 {[%clk 0:02:43]} 13. a3 {[%clk 0:02:44]}  Ng4 {[%clk 0:02:33]} 14. Be4 {[%clk 0:02:02]}  f5 {[%clk 0:02:13]} 15. Bg2 {[%clk 0:02:02]}  Bxe3 {[%clk 0:01:51]} 16. fxe3 {[%clk 0:01:55]}  Bxg2 {[%clk 0:01:51]} 17. Qd2 {[%clk 0:01:51]}  Bh3 {[%clk 0:01:27]} 18. d4 {[%clk 0:01:51]}  Qf7 {[%clk 0:00:59]} 19. Nd5 {[%clk 0:01:49]}  g5 {[%clk 0:00:40]} 20. Kh1 {[%clk 0:01:41]}  Qh5 {[%clk 0:00:38]} 21. Ng1 {[%clk 0:01:37]}  Rf7 {[%clk 0:00:21]} 22. Nxh3 {[%clk 0:01:31]}  Qxh3 {[%clk 0:00:21]} 23. Qg2 {[%clk 0:01:32]}  Qh5 {[%clk 0:00:19]} 24. Kg1 {[%clk 0:01:32]}  Raf8 {[%clk 0:00:18]} 25. b4 {[%clk 0:01:24]}  f4 {[%clk 0:00:15]} 26. exf4 {[%clk 0:01:18]}  exf4 {[%clk 0:00:15]} 27. gxf4 {[%clk 0:01:15]}  gxf4 {[%clk 0:00:15]} 28. Rf1 {[%clk 0:00:44]}  f3 {[%clk 0:00:14]} 29. Qg3 {[%clk 0:00:44]}  f2+ {[%clk 0:00:14]} 30. Kh1 {[%clk 0:00:36]}  Rf3 {[%clk 0:00:14]} 31. Qg2 {[%clk 0:00:27]}  Rh3 {[%clk 0:00:14]} 32. Rxf2 {[%clk 0:00:20]}  Rxf2 {[%clk 0:00:13]} 33. Nf6+ {[%clk 0:00:20]}  Rxf6 {[%clk 0:00:12]} 34. Qxg4+ {[%clk 0:00:18]}  Qxg4 {[%clk 0:00:12]} 35. Rg1 {[%clk 0:00:19]}  Qxg1+ {[%clk 0:00:06]} 36. Kxg1 {[%clk 0:00:19]}  Rhf3 {[%clk 0:00:07]} 0-1


[Site "https://www.chess.com"]

[Event "Titled Tuesday Blitz January 03 Early 2023"]
[White "Kobalia, Mikhail"]
[Black "Janaszak, Dawid"]
[WhiteFideId "4119150"]
[BlackFideId "1119206"]
[WhiteElo "2578"]
[BlackElo "2316"]
[Result "1-0"]
[Round "09"]
[TimeControl "180+2"]
[Date "2023.01.03"]
[WhiteClock "0:00:59"]
[BlackClock "0:00:03"]

1. e4 {[%clk 0:02:56]}  c5 {[%clk 0:03:00]} 2. Nf3 {[%clk 0:02:54]}  e6 {[%clk 0:03:00]} 3. d4 {[%clk 0:02:51]}  cxd4 {[%clk 0:03:01]} 4. Nxd4 {[%clk 0:02:51]}  a6 {[%clk 0:03:01]} 5. c4 {[%clk 0:02:48]}  Nf6 {[%clk 0:02:59]} 6. Nc3 {[%clk 0:02:48]}  Qc7 {[%clk 0:03:00]} 7. Be2 {[%clk 0:02:47]}  b6 {[%clk 0:03:00]} 8. O-O {[%clk 0:02:47]}  Bb7 {[%clk 0:03:00]} 9. f3 {[%clk 0:02:47]}  Be7 {[%clk 0:02:57]} 10. Be3 {[%clk 0:02:46]}  O-O {[%clk 0:02:57]} 11. Qd2 {[%clk 0:02:46]}  d6 {[%clk 0:02:57]} 12. b4 {[%clk 0:02:45]}  Nbd7 {[%clk 0:02:57]} 13. Rac1 {[%clk 0:02:44]}  Rac8 {[%clk 0:02:52]} 14. Kh1 {[%clk 0:02:43]}  Rfd8 {[%clk 0:02:51]} 15. Nb3 {[%clk 0:02:42]}  Ne5 {[%clk 0:02:50]} 16. Na4 {[%clk 0:02:39]}  Nfd7 {[%clk 0:02:41]} 17. Qe1 {[%clk 0:02:37]}  Bc6 {[%clk 0:02:27]} 18. Nc3 {[%clk 0:02:36]}  Qb8 {[%clk 0:02:20]} 19. Qf2 {[%clk 0:02:35]}  Ba8 {[%clk 0:02:14]} 20. Na4 {[%clk 0:02:31]}  b5 {[%clk 0:02:03]} 21. cxb5 {[%clk 0:02:31]}  axb5 {[%clk 0:02:00]} 22. Nb6 {[%clk 0:02:28]}  Rxc1 {[%clk 0:01:45]} 23. Rxc1 {[%clk 0:02:27]}  Nxb6 {[%clk 0:01:28]} 24. Bxb6 {[%clk 0:02:26]}  Rc8 {[%clk 0:01:26]} 25. Rxc8+ {[%clk 0:02:21]}  Qxc8 {[%clk 0:01:26]} 26. Bxb5 {[%clk 0:02:21]}  d5 {[%clk 0:01:11]} 27. exd5 {[%clk 0:02:17]}  Bxd5 {[%clk 0:01:08]} 28. Bc5 {[%clk 0:02:12]}  Bf6 {[%clk 0:00:58]} 29. Bf1 {[%clk 0:02:07]}  h5 {[%clk 0:00:44]} 30. Bd4 {[%clk 0:01:55]}  Qb7 {[%clk 0:00:37]} 31. Qe3 {[%clk 0:01:44]}  Nd7 {[%clk 0:00:13]} 32. Bxf6 {[%clk 0:01:39]}  Nxf6 {[%clk 0:00:14]} 33. a3 {[%clk 0:01:39]}  Qc6 {[%clk 0:00:08]} 34. Nc5 {[%clk 0:01:38]}  h4 {[%clk 0:00:06]} 35. h3 {[%clk 0:01:29]}  Nh5 {[%clk 0:00:05]} 36. Kg1 {[%clk 0:01:24]}  Ng3 {[%clk 0:00:06]} 37. Qg5 {[%clk 0:01:20]}  Nf5 {[%clk 0:00:04]} 38. Bd3 {[%clk 0:01:17]}  Qd6 {[%clk 0:00:02]} 39. Bxf5 {[%clk 0:01:14]}  exf5 {[%clk 0:00:03]} 40. Qxf5 {[%clk 0:01:12]}  Bc6 {[%clk 0:00:04]} 41. Ne4 {[%clk 0:01:06]}  Qd4+ {[%clk 0:00:04]} 42. Kh2 {[%clk 0:01:05]}  Qa1 {[%clk 0:00:04]} 43. Qc8+ {[%clk 0:01:03]}  Kh7 {[%clk 0:00:04]} 44. Qxc6 {[%clk 0:01:01]}  Qe5+ {[%clk 0:00:04]} 45. Kg1 {[%clk 0:01:01]}  Qd4+ {[%clk 0:00:04]} 46. Kf1 {[%clk 0:01:01]}  Qd3+ {[%clk 0:00:04]} 47. Kf2 {[%clk 0:01:01]}  Qxa3 {[%clk 0:00:03]} 48. Ng5+ {[%clk 0:00:59]} 1-0


[Site "https://www.chess.com"]